bitfinex/quotes_SOLUSD_20240930
["timestamp","ask_amount","ask_price","bid_price","bid_amount"]
[1727700272670,1.6034755,155.95,155.9,7.2523066]
[1727700281988,12.8528,155.96,155.9,7.2523066]
[1727700282292,6.412,155.96,155.9,7.2523066]
[1727700284794,1.60353794,155.95,155.9,7.2523066]
[1727700287487,1.60353794,155.95,155.9,0.8380066]
[1727700287678,6.412,155.96,155.91,6.4139]
[1727700287878,1.6034926,155.95,155.91,6.4139]
[1727700291303,1.6034926,155.95,155.9,7.2521066]
[1727700292480,1.6034926,155.95,155.9,6.7521066]
[1727700295479,8.0157926,155.95,155.9,6.7521066]
[1727700297411,15.6493,155.97,155.9,6.7521066]
[1727700297412,15.6493,155.97,155.9,0.3380066]
[1727700297590,22.061,155.97,155.91,6.4137]
[1727700297792,1.60345161,155.96,155.91,6.4137]
[1727700298109,8.01535161,155.96,155.91,6.4137]
[1727700313920,6.4119,155.96,155.91,6.4137]
[1727700314116,6.65624909,155.99,155.93,16.0325]
[1727700314321,6.411,155.98,155.93,22.4454]
[1727700314723,6.65624909,155.99,155.91,22.1286]
[1727700314924,6.65624909,155.99,155.92,0.80792504]
[1727700315111,6.409,156.03,155.98,6.4107]
[1727700315313,1.60269083,156.02,155.97,22.4397]
[1727700318923,1.60269083,156.02,155.98,6.4109]
[1727700319920,6.409,156.03,155.98,6.4109]
[1727700322235,1.60272507,156.02,155.98,6.4109]
[1727700328022,1.43636488,156.01,155.97,16.0283]
[1727700328323,6.4101,156.01,155.97,16.0283]
[1727700328529,1.60289272,156.0,155.96,6.4117]
[1727700333923,12.84936771,156.03,155.96,16.0293]
[1727700334125,6.409,156.03,155.98,6.4107]
[1727700334424,6.409,156.03,155.98,6.4109]
[1727700335431,1.6027106,156.02,155.98,6.4109]
[1727700337828,22.673644,156.06,155.96,16.0293]
[1727700337829,6.653444,156.06,156.02,6.409]
[1727700338035,6.653444,156.06,156.03,6.409]
[1727700338348,15.1772,156.09,156.03,6.409]
[1727700338349,21.5838,156.09,156.03,6.409]
[1727700338543,21.5838,156.09,156.04,6.4085]
[1727700339231,15.1772,156.09,156.04,6.4085]
[1727700340533,1.60203708,156.08,156.04,6.4085]
[1727700341122,21.5838,156.09,156.04,6.4085]
[1727700343745,1.60206617,156.08,156.04,6.4085]
[1727700344448,21.5838,156.09,156.04,6.4085]
[1727700344949,15.1772,156.09,156.05,6.4081]
[1727700346048,21.5837,156.09,156.05,6.4081]
[1727700346555,1.60201221,156.08,156.05,6.4081]
[1727700348560,21.5837,156.09,156.05,6.4081]
[1727700351041,14.66015811,156.1,156.06,6.4077]
[1727700351251,6.4061,156.1,156.06,6.4077]
[1727700351761,1.60182359,156.09,156.06,6.4077]
[1727700352260,6.4061,156.1,156.06,6.4077]
[1727700353261,1.60182371,156.09,156.06,6.4077]
[1727700354446,6.4061,156.1,156.06,6.4077]
[1727700355434,21.81146352,156.13,156.05,0.80524728]
[1727700355659,6.4057,156.11,156.07,6.4073]
[1727700362955,1.60172197,156.1,156.07,6.4073]
[1727700363778,6.4057,156.11,156.07,6.4073]
[1727700364972,1.60172212,156.1,156.07,6.4073]
[1727700365174,8.00792212,156.1,156.06,22.4264]
[1727700365871,6.4062,156.1,156.06,22.4264]
[1727700369274,6.4057,156.11,156.07,6.4073]
[1727700369475,1.60171813,156.1,156.07,6.4073]
[1727700370159,6.4057,156.11,156.07,6.4073]
[1727700370671,8.00791568,156.1,156.06,22.4265]
[1727700370876,6.4065,156.09,156.06,16.0188]
[1727700371081,8.00791568,156.1,156.06,22.4265]
[1727700371286,6.4062,156.1,156.06,22.4265]
[1727700372972,6.4058,156.11,156.07,6.4072]
[1727700373587,6.4056,156.12,156.08,6.4068]
[1727700373884,6.4048,156.14,156.09,7.21085153]
[1727700374191,6.4048,156.14,156.09,6.4062]
[1727700374977,6.4048,156.14,156.1,6.406]
[1727700375184,37.69107449,156.17,156.1,6.406]
[1727700375185,6.4037,156.16,156.12,6.4052]
[1727700375787,6.4032,156.17,156.12,6.4052]
[1727700377175,1.60109418,156.16,156.12,6.4052]
[1727700377790,6.4032,156.17,156.13,6.4048]
[1727700377993,6.4029,156.18,156.13,6.4048]
[1727700378170,16.1149,156.21,156.14,7.20762977]
[1727700378171,13.09644134,156.2,156.14,7.20762977]
[1727700378373,6.4021,156.2,156.15,6.4039]
[1727700378872,22.5165,156.21,156.15,6.4039]
[1727700380290,6.6934327,156.22,156.16,0.80273392]
[1727700380697,6.3995,156.27,156.22,6.401]
[1727700381375,6.3989,156.28,156.23,0.80091645]
[1727700381577,6.3996,156.26,156.22,16.0021]
[1727700381774,1.60019151,156.25,156.18,16.0061]
[1727700381971,1.60034258,156.24,156.18,16.0061]
[1727700382180,6.4012,156.22,156.15,38.0231]
[1727700382387,1.60055876,156.21,156.16,6.4033]
[1727700383183,8.00245876,156.21,156.15,44.4271]
[1727700383373,1.43839882,156.2,156.15,38.0231]
[1727700383694,1.43839882,156.2,156.16,6.4036]
[1727700383890,7.84049882,156.2,156.15,22.4141]
[1727700384088,1.43837877,156.19,156.15,22.4141]
[1727700384396,1.43837877,156.19,156.11,22.4808]
[1727700384598,6.4028,156.19,156.14,6.4045]
[1727700384777,8.00381875,156.18,156.13,6.4048]
[1727700384978,6.4025,156.19,156.14,6.4044]
[1727700385386,6.4017,156.21,156.16,6.4035]
[1727700386590,22.2529,156.23,156.17,7.20537469]
[1727700387109,6.4013,156.22,156.17,6.4029]
[1727700388105,6.4013,156.22,156.18,0.80217872]
[1727700388602,15.8518,156.23,156.18,0.80217872]
[1727700388896,15.8518,156.23,156.19,6.4023]
[1727700389201,1.60032807,156.22,156.18,6.4027]
[1727700389382,8.00162807,156.22,156.18,6.4027]
[1727700389725,22.2527,156.23,156.19,0.80214365]
[1727700389912,6.4004,156.24,156.19,6.4023]
[1727700392277,6.4001,156.25,156.2,0.80168815]
[1727700392496,16.2369,156.27,156.2,16.80618815]
[1727700392775,22.6362,156.27,156.23,6.4007]
[1727700392997,22.6362,156.27,156.18,54.3683]
[1727700393198,22.6362,156.27,156.22,22.4037]
[1727700393406,22.6362,156.27,156.22,16.0026]
[1727700393608,16.2369,156.27,156.23,7.20138821]
[1727700394412,6.8298,156.29,156.24,6.4002]
[1727700394413,6.8984,156.29,156.24,6.4002]
[1727700394704,6.3992,156.27,156.22,22.4037]
[1727700394911,1.5999774,156.26,156.22,22.4037]
[1727700395404,6.3988,156.28,156.23,6.4005]
[1727700395610,0.5,156.29,156.24,0.80077]
[1727700395786,0.5,156.29,156.24,16.80087]
[1727700395997,0.5,156.29,156.24,22.4004]
[1727700396689,8.49809585,156.29,156.24,22.4004]
[1727700397191,0.5,156.29,156.24,16.0001]
[1727700397400,0.5,156.29,156.25,6.3999]
[1727700397897,0.5,156.29,156.24,16.0001]
[1727700398298,6.8984,156.29,156.24,16.0001]
[1727700398797,6.8984,156.29,156.24,22.4004]
[1727700400492,7.99855076,156.28,156.24,16.0001]
[1727700400682,6.3988,156.28,156.24,16.0001]
[1727700401712,6.3991,156.27,156.23,6.4007]
[1727700402090,0.5,156.29,156.24,6.4]
[1727700402295,6.8983,156.29,156.24,6.4]
[1727700403334,6.3994,156.27,156.23,16.0012]
[1727700403615,1.59999595,156.26,156.2,16.0046]
[1727700403804,6.4004,156.24,156.2,22.4066]
[1727700404114,6.4004,156.24,156.2,16.0046]
[1727700404515,15.1725,156.24,156.2,16.0046]
[1727700404691,21.5729,156.24,156.2,16.0046]
[1727700405299,8.0010944,156.23,156.18,6.4027]
[1727700405499,8.0010944,156.23,156.17,16.0078]
[1727700405500,6.4013,156.22,156.17,22.4109]
[1727700405987,1.6002944,156.23,156.18,6.4027]
[1727700406192,8.0011944,156.23,156.18,6.4027]
[1727700406392,6.4009,156.23,156.18,6.4027]
[1727700407523,6.4012,156.22,156.17,16.0078]
[1727700407819,8.00173481,156.22,156.17,22.4109]
[1727700408025,15.1725,156.24,156.2,6.4019]
[1727700408195,21.573,156.24,156.2,6.4019]
[1727700408618,15.1725,156.24,156.21,7.20319587]
[1727700408817,6.1816,156.26,156.22,0.80137056]
[1727700409045,6.3992,156.27,156.22,6.4009]
[1727700409346,22.925,156.28,156.21,16.0035]
[1727700409526,22.925,156.28,156.22,0.80058732]
[1727700409727,16.5262,156.28,156.24,6.4003]
[1727700410326,16.5262,156.28,156.25,6.3999]
[1727700410522,0.5,156.29,156.26,7.19979142]
[1727700411547,0.5,156.29,156.26,6.3995]
[1727700411845,0.5,156.29,156.27,0.80004028]
[1727700412439,0.5,156.29,156.25,15.9993]
[1727700412774,0.5,156.29,156.27,6.3988]
[1727700414624,0.5,156.29,156.26,6.3995]
[1727700415328,0.5,156.29,156.27,6.3991]
[1727700415527,0.5,156.29,156.25,15.9993]
[1727700415745,0.5,156.29,156.28,6.3987]
[1727700416549,0.5,156.29,156.26,6.3992]
[1727700417045,0.5,156.29,156.27,6.3991]
[1727700418026,0.5,156.29,156.26,6.3995]
[1727700420440,0.5,156.29,156.25,15.9993]
[1727700421446,0.5,156.29,156.23,20.0]
[1727700421753,0.5,156.29,156.28,6.3987]
[1727700424346,0.5,156.29,156.27,22.3965]
[1727700424554,0.5,156.29,156.27,15.9974]
[1727700425221,0.5,156.29,156.24,16.0003]
[1727700425446,6.3988,156.28,156.24,22.4006]
[1727700426029,6.3988,156.28,156.24,16.0003]
[1727700427733,0.5,156.29,156.24,16.0003]
[1727700427928,6.8984,156.29,156.25,6.3999]
[1727700428962,0.5,156.29,156.26,6.3995]
[1727700429132,0.5,156.29,156.27,6.3988]
[1727700429332,0.5,156.29,156.28,6.3987]
[1727700432942,0.5,156.29,156.27,6.3991]
[1727700435463,0.5,156.29,156.26,22.3979]
[1727700435639,0.5,156.29,156.27,6.3991]
[1727700437646,0.5,156.29,156.26,15.9985]
[1727700437647,0.5,156.29,156.26,22.3979]
[1727700437967,0.5,156.29,156.27,6.3991]
[1727700438369,0.5,156.29,156.28,6.3987]
[1727700441266,0.5,156.29,156.27,6.399]
[1727700441465,0.5,156.29,156.28,6.3987]
[1727700445948,0.5,156.29,156.27,234.0]
[1727700446380,8.49817308,156.29,156.27,234.0]
[1727700446575,2.09967308,156.29,156.27,234.0]
[1727700446869,0.5,156.29,156.27,234.0]
[1727700448056,6.8984,156.29,156.27,234.0]
[1727700448964,0.5,156.29,156.27,234.0]
[1727700449184,0.5,156.29,156.28,6.3987]
[1727700456280,0.5,156.29,156.27,256.3968]
[1727700456976,0.5,156.29,156.27,234.0]
[1727700456977,8.49775215,156.29,156.27,234.0]
[1727700457293,6.8983,156.29,156.27,234.0]
[1727700459676,0.5,156.29,156.27,234.0]
[1727700460103,0.5,156.29,156.27,240.3991]
[1727700460399,0.5,156.29,156.28,6.3987]
[1727700463386,0.5,156.29,156.27,240.3991]
[1727700463556,0.5,156.29,156.27,234.0]
[1727700464293,0.5,156.29,156.27,240.399]
[1727700464855,0.5,156.29,156.28,6.3987]
[1727700465572,0.5,156.29,156.27,240.399]
[1727700467087,0.5,156.29,156.28,6.3987]
[1727700480674,0.5,156.29,156.27,234.0]
[1727700481002,0.5,156.29,156.27,240.399]
[1727700481684,0.5,156.29,156.28,6.3987]
[1727700496802,0.5,156.29,156.28,11.11491013]
[1727700498395,0.0001,156.29,156.28,31.11491013]
[1727700498590,0.0001,156.29,156.28,58.39576057]
[1727700498789,0.0001,156.29,156.28,66.33179139]
[1727700499184,6.6769639,156.44,156.34,31.9807]
[1727700499381,6.6769639,156.44,156.43,6.3926]
[1727700499611,0.8380066,156.45,156.43,6.3926]
[1727700499986,0.8380066,156.45,156.41,15.9835]
[1727700499987,0.8380066,156.45,156.44,6.3922]
[1727700505488,0.8380066,156.45,156.44,26.3922]
[1727700505888,0.8380066,156.45,156.44,42.3473]
[1727700509215,0.8380066,156.45,156.44,58.42483385]
[1727700510504,0.8380066,156.45,156.44,42.3473]
[1727700518725,0.8380066,156.45,156.44,26.3922]
[1727700521631,0.8380066,156.45,156.44,36.67767697]
[1727700523817,0.8380066,156.45,156.44,26.3922]
[1727700529130,1.2174138,156.6,156.44,26.3922]
[1727700529131,6.3861,156.59,156.55,6.3875]
[1727700529309,1.2174138,156.6,156.55,6.3875]
[1727700529509,1.2174138,156.6,156.54,15.9698]
[1727700529706,7.6031138,156.6,156.55,6.3876]
[1727700530317,7.6031138,156.6,156.54,15.9698]
[1727700530318,1.2174138,156.6,156.56,15.9678]
[1727700530511,6.4202,156.58,156.54,6.388]
[1727700530723,12.8067,156.58,156.54,6.388]
[1727700531530,6.3876,156.56,156.51,6.3893]
[1727700531732,6.3876,156.56,156.52,6.3888]
[1727700532312,6.3869,156.57,156.52,6.3888]
[1727700532636,1.2174138,156.6,156.46,10.28547697]
[1727700532637,17.7679138,156.6,156.54,20.0]
[1727700533021,17.7679138,156.6,156.58,6.3865]
[1727700533226,17.7679138,156.6,156.57,15.9663]
[1727700533435,17.7679138,156.6,156.59,6.3861]
[1727700533828,1.2174138,156.6,156.59,6.3861]
[1727700534027,1.2174138,156.6,156.59,5.8861]
[1727700536428,1.2174138,156.6,156.57,15.9663]
[1727700536429,16.6399138,156.6,156.58,6.3864]
[1727700537542,16.6399138,156.6,156.59,6.3861]
[1727700537844,16.6399138,156.6,156.57,15.9663]
[1727700538046,16.6399138,156.6,156.58,6.3864]
[1727700538560,1.2174138,156.6,156.59,6.3861]
[1727700539048,0.7174138,156.6,156.57,15.9663]
[1727700539416,0.7174138,156.6,156.57,22.3529]
[1727700540733,0.7174138,156.6,156.54,15.97]
[1727700540923,6.3866,156.58,156.54,22.358]
[1727700541233,22.5408,156.59,156.55,6.3875]
[1727700541421,16.1546,156.59,156.55,6.3875]
[1727700543239,22.5407,156.59,156.55,6.3875]
[1727700543924,16.1546,156.59,156.55,6.3875]
[1727700544124,22.5408,156.59,156.55,6.3875]
[1727700544343,22.5408,156.59,156.54,22.358]
[1727700545045,16.1546,156.59,156.54,15.97]
[1727700545227,6.3865,156.58,156.54,22.358]
[1727700545425,16.1546,156.59,156.54,22.358]
[1727700545642,22.5408,156.59,156.54,22.358]
[1727700545847,22.5408,156.59,156.55,6.3876]
[1727700546148,16.1546,156.59,156.54,15.97]
[1727700546332,16.1546,156.59,156.56,6.3872]
[1727700547334,16.1546,156.59,156.55,6.3876]
[1727700547640,22.5408,156.59,156.55,6.3876]
[1727700548244,6.3865,156.58,156.54,22.3581]
[1727700548449,16.1546,156.59,156.54,15.97]
[1727700548654,16.1546,156.59,156.54,22.358]
[1727700548655,6.3865,156.58,156.54,22.358]
[1727700548860,22.5407,156.59,156.54,22.358]
[1727700549656,22.5407,156.59,156.55,6.3876]
[1727700551039,16.1546,156.59,156.55,6.3876]
[1727700551242,16.1546,156.59,156.57,6.3865]
[1727700552548,16.1546,156.59,156.56,22.3551]
[1727700553035,16.1546,156.59,156.56,15.9679]
[1727700553639,16.1546,156.59,156.56,22.3548]
[1727700554848,16.1546,156.59,156.57,6.3866]
[1727700558654,16.1546,156.59,156.56,15.9679]
[1727700558846,16.1546,156.59,156.56,22.3551]
[1727700560275,0.7174138,156.6,156.58,6.3865]
[1727700563753,0.7174138,156.6,156.56,15.9679]
[1727700563959,0.7174138,156.6,156.57,6.3868]
[1727700564260,7.1031138,156.6,156.56,22.3551]
[1727700566178,0.7174138,156.6,156.57,6.3869]
[1727700568180,0.7174138,156.6,156.56,15.9679]
[1727700568376,0.7174138,156.6,156.57,6.3867]
[1727700577191,0.7174138,156.6,156.58,6.3864]
[1727700577500,0.7174138,156.6,156.59,6.3861]
[1727700592206,0.7174138,156.6,156.59,16.66545351]
[1727700594380,0.7174138,156.6,156.59,36.66545351]
[1727700595080,0.2614145,156.66,156.65,6.3836]
[1727700600987,0.2614145,156.66,156.64,15.9596]
[1727700600988,0.2614145,156.66,156.64,22.3435]
[1727700601208,0.2614145,156.66,156.65,6.3836]
[1727700605018,0.2614145,156.66,156.65,16.66295351]
[1727700606390,0.2614145,156.66,156.65,6.3836]
[1727700607609,0.2614145,156.66,156.65,36.66295351]
[1727700611306,1.45e-05,156.66,156.65,36.66295351]
[1727700613222,1.45e-05,156.66,156.65,26.3836]
[1727700613425,1.45e-05,156.66,156.65,36.66295351]
[1727700616932,1.45e-05,156.66,156.65,26.3836]
[1727700618211,1.45e-05,156.66,156.65,36.66295351]
[1727700619710,15.2564,156.74,156.65,38.36338199]
[1727700619914,15.2564,156.74,156.73,6.3803]
[1727700620918,15.2564,156.74,156.72,22.3322]
[1727700621432,15.2564,156.74,156.72,15.9515]
[1727700621734,15.2564,156.74,156.73,6.3803]
[1727700622523,15.2564,156.74,156.72,15.9515]
[1727700622726,15.2564,156.74,156.72,22.3322]
[1727700622936,15.2564,156.74,156.73,6.3803]
[1727700624347,15.2564,156.74,156.72,15.9515]
[1727700624515,15.2564,156.74,156.73,6.3803]
[1727700624914,15.2564,156.74,156.72,15.9515]
[1727700625110,15.2564,156.74,156.72,22.332]
[1727700625716,15.2564,156.74,156.73,6.3803]
[1727700627830,15.2564,156.74,156.72,22.3322]
[1727700628226,15.2564,156.74,156.73,6.3803]
[1727700629143,15.2564,156.74,156.72,15.9515]
[1727700629748,15.2564,156.74,156.71,6.3811]
[1727700630047,15.2564,156.74,156.72,6.3806]
[1727700630345,15.2564,156.74,156.71,6.3811]
[1727700631646,15.2564,156.74,156.69,47.8647]
[1727700631839,15.2564,156.74,156.72,6.3807]
[1727700632841,1.11114701,156.85,156.73,2.0]
[1727700633540,1.59483858,156.84,156.71,2.0]
[1727700633726,8.27187478,156.84,156.71,2.0]
[1727700633926,19.28,156.83,156.71,2.0]
[1727700634130,6.3805,156.73,156.69,17.9546]
[1727700635550,6.3805,156.73,156.69,24.3365]
[1727700635762,22.7551,156.73,156.69,24.3365]
[1727700636653,22.7551,156.73,156.69,17.9546]
[1727700637124,16.3746,156.73,156.69,17.9546]
[1727700637328,16.3746,156.73,156.71,2.0]
[1727700637545,16.3746,156.73,156.71,8.3811]
[1727700638052,16.3746,156.73,156.71,2.0]
[1727700638631,16.3746,156.73,156.72,6.3808]
[1727700639331,6.3788,156.77,156.73,8.3802]
[1727700639332,15.8357,156.77,156.73,8.3802]
[1727700639554,15.8357,156.77,156.73,17.9506]
[1727700639848,22.2147,156.77,156.73,17.9506]
[1727700640574,22.2147,156.77,156.73,24.3308]
[1727700649644,15.8357,156.77,156.73,24.3308]
[1727700649959,15.8357,156.77,156.73,17.9506]
[1727700650261,15.8357,156.77,156.74,6.3798]
[1727700650475,15.8357,156.77,156.75,2.0]
[1727700651251,12.455,156.79,156.75,2.0]
[1727700651756,6.0768,156.79,156.75,2.0]
[1727700651961,6.3784,156.78,156.75,2.0]
[1727700652868,1.59463121,156.77,156.72,2.0]
[1727700653159,6.3792,156.76,156.72,8.3807]
[1727700653371,6.3787,156.78,156.74,2.0]
[1727700653534,7.97347883,156.78,156.74,2.0]
[1727700653738,6.3787,156.78,156.74,2.0]
[1727700653948,6.3788,156.77,156.74,2.0]
[1727700654569,1.59478701,156.76,156.72,17.9513]
[1727700654750,6.0768,156.79,156.72,2.0]
[1727700654751,6.3798,156.75,156.72,2.0]
[1727700657754,6.38,156.74,156.72,2.0]
[1727700658159,6.3797,156.75,156.72,2.0]
[1727700659378,6.0768,156.79,156.72,2.0]
[1727700659379,1.59508177,156.78,156.72,2.0]
[1727700659581,6.3804,156.73,156.69,24.336]
[1727700659751,6.3802,156.74,156.7,6.3815]
[1727700661264,6.3805,156.73,156.69,24.3362]
[1727700661683,6.3812,156.71,156.67,8.3827]
[1727700661877,6.3816,156.7,156.67,2.0]
[1727700662261,6.3813,156.71,156.67,8.3827]
[1727700662457,15.0213,156.75,156.67,2.0]
[1727700662783,6.3809,156.72,156.68,6.3821]
[1727700664957,6.3804,156.73,156.69,6.3819]
[1727700665158,15.0213,156.75,156.69,6.3819]
[1727700665159,6.38,156.74,156.7,6.3815]
[1727700666183,1.59527734,156.74,156.7,15.9535]
[1727700666382,7.97557734,156.74,156.7,22.335]
[1727700667080,1.59527734,156.74,156.69,2.0]
[1727700667280,6.3808,156.72,156.69,2.0]
[1727700669090,1.59527734,156.74,156.69,2.0]
[1727700669091,15.0213,156.75,156.69,2.0]
[1727700669275,6.3804,156.73,156.69,8.3819]
[1727700670005,6.3792,156.76,156.71,6.3808]
[1727700670284,6.38,156.74,156.69,2.0]
[1727700670492,1.59531273,156.73,156.69,2.0]
[1727700670792,6.3792,156.76,156.71,6.3811]
[1727700671359,27.84026697,156.79,156.71,6.3811]
[1727700671360,6.3787,156.77,156.72,22.3326]
[1727700671786,7.97328935,156.78,156.73,2.0]
[1727700671988,6.3788,156.77,156.73,2.0]
[1727700672366,28.14176697,156.79,156.73,8.3802]
[1727700673363,7.97342588,156.78,156.73,8.3802]
[1727700673568,6.3785,156.78,156.73,8.3802]
[1727700674690,1.59492643,156.77,156.73,8.3802]
[1727700675190,1.59492643,156.77,156.71,2.0]
[1727700675487,6.3783,156.78,156.73,2.0]
[1727700675863,1.59492974,156.77,156.73,2.0]
[1727700676381,6.3783,156.78,156.73,2.0]
[1727700677264,28.14146697,156.79,156.73,2.0]
[1727700677594,1.59478473,156.78,156.73,2.0]
[1727700677772,13.05596697,156.79,156.73,2.0]
[1727700678085,13.05596697,156.79,156.75,8.3794]
[1727700678086,6.67796697,156.79,156.75,8.3794]
[1727700678388,15.8769,156.82,156.75,8.3794]
[1727700679092,6.3775,156.81,156.75,8.3794]
[1727700679796,6.3764,156.83,156.78,6.3782]
[1727700680168,15.8769,156.86,156.79,8.3779]
[1727700680481,1.59425736,156.85,156.81,2.0]
[1727700680899,1.59422698,156.84,156.79,8.3778]
[1727700681210,1.59420082,156.84,156.79,2.0]
[1727700681366,7.96967548,156.85,156.81,2.0]
[1727700681680,21.1704,156.9,156.81,8.3769]
[1727700681863,24.3781082,156.89,156.79,2.0]
[1727700682069,6.3759,156.85,156.81,2.0]
[1727700682371,6.375,156.87,156.81,2.0]
[1727700682996,1.59404475,156.86,156.81,2.0]
[1727700683192,6.3756,156.85,156.81,2.0]
[1727700683405,1.59407948,156.84,156.81,2.0]
[1727700683695,1.59419912,156.89,156.81,2.0]
[1727700683889,21.1704,156.9,156.83,2.0]
[1727700684478,1.59398121,156.89,156.83,2.0]
[1727700685210,6.3747,156.87,156.83,2.0]
[1727700685573,1.59393575,156.86,156.83,2.0]
[1727700686321,6.3747,156.87,156.83,2.0]
[1727700686983,1.59392411,156.86,156.83,2.0]
[1727700687684,6.3747,156.87,156.83,2.0]
[1727700688102,1.59395515,156.86,156.83,2.0]
[1727700688403,7.96905515,156.86,156.83,2.0]
[1727700688717,6.3759,156.84,156.8,2.0]
[1727700688999,21.84246434,156.9,156.76,8.438]
[1727700689000,6.3772,156.81,156.76,8.438]
[1727700689210,1.59452912,156.8,156.78,2.0]
[1727700689878,1.59452912,156.8,156.76,8.438]
[1727700690085,6.3777,156.8,156.76,2.0]
[1727700690513,1.59464269,156.79,156.74,2.0]
[1727700690807,6.3783,156.78,156.74,2.0]
[1727700691182,6.3779,156.79,156.76,2.0]
[1727700692286,1.59472082,156.84,156.8,2.0]
[1727700692484,6.3763,156.83,156.8,2.0]
[1727700693001,6.3763,156.83,156.78,2.0]
[1727700693390,15.5451,156.88,156.78,2.0]
[1727700693590,6.3772,156.81,156.78,2.0]
[1727700693828,1.59458116,156.8,156.78,2.0]
[1727700694017,6.3766,156.83,156.78,2.0]
[1727700694316,15.9378,156.86,156.78,2.0]
[1727700694317,6.3768,156.82,156.78,2.0]
[1727700694485,1.59443569,156.81,156.78,2.0]
[1727700694817,7.97153569,156.81,156.78,2.0]
[1727700694992,1.59448249,156.8,156.76,17.947]
[1727700695189,6.3776,156.8,156.76,17.947]
[1727700695505,6.3776,156.8,156.76,2.0]
[1727700695711,1.59458184,156.79,156.74,2.0]
[1727700696214,6.3787,156.77,156.74,2.0]
[1727700696606,1.59458184,156.79,156.72,24.5128]
[1727700696904,15.8591,156.81,156.74,2.0]
[1727700696905,6.3784,156.78,156.74,2.0]
[1727700697122,6.377,156.82,156.78,2.0]
[1727700697295,6.3771,156.81,156.78,2.0]
[1727700698612,6.3767,156.82,156.78,2.0]
[1727700699024,6.3763,156.83,156.8,2.0]
[1727700699717,15.7538,156.85,156.8,2.0]
[1727700699888,13.09373817,156.88,156.79,6.3779]
[1727700699889,6.3751,156.86,156.82,2.0]
[1727700700099,1.59398987,156.85,156.82,2.0]
[1727700702017,6.3751,156.86,156.82,2.0]
[1727700704224,7.96948615,156.85,156.82,2.0]
[1727700704409,6.3752,156.86,156.82,2.0]
[1727700704719,6.3739,156.89,156.84,8.3756]
[1727700704907,7.88993733,156.91,156.86,2.0]
[1727700705117,6.3751,156.86,156.84,2.0]
[1727700705915,6.3747,156.87,156.84,2.0]
[1727700706109,1.59397277,156.86,156.84,2.0]
[1727700707632,6.3751,156.86,156.84,2.0]
[1727700707810,1.59403528,156.85,156.84,2.0]
[1727700710105,1.59421209,156.9,156.79,17.9445]
[1727700710307,6.3766,156.83,156.79,2.0]
[1727700711129,6.3771,156.81,156.77,2.0]
[1727700711317,7.97216403,156.8,156.77,2.0]
[1727700711507,6.3771,156.81,156.77,2.0]
[1727700713028,1.59456586,156.8,156.77,2.0]
[1727700714725,6.3771,156.81,156.77,8.3787]
[1727700717318,1.59454426,156.8,156.77,8.3787]
[1727700717736,1.59454586,156.84,156.79,2.0]
[1727700717937,6.377,156.82,156.79,2.0]
[1727700718622,1.59444496,156.81,156.79,2.0]
[1727700718921,6.3773,156.81,156.79,2.0]
[1727700719124,1.59454422,156.8,156.79,2.0]
[1727700719843,1.59454422,156.8,156.77,2.0]
[1727700720340,1.59454422,156.8,156.77,8.3786]
[1727700721356,1.59454422,156.8,156.77,2.0]
[1727700721837,6.3773,156.81,156.77,2.0]
[1727700722338,6.67439403,156.85,156.83,2.0]
[1727700722643,6.3737,156.9,156.86,2.0]